fUST/lending_fUST_20241205
["ID","MTS","AMOUNT","RATE_DAILY","PERIOD"]
[344379692,1733394645864,-275.1,0.00024843,4]
[344379693,1733394645874,-19428.24246611,0.000249,2]
[344379694,1733394645883,-1318.33036413,0.000249,2]
[344379695,1733394645892,-500.0,0.00024931,2]
[344379696,1733394645902,-321.13781328,0.00024931,2]
[344379697,1733394645911,-528.793104,0.00024931,2]
[344379698,1733394645920,-500.0,0.00024931,2]
[344379699,1733394645929,-500.0,0.00024931,2]
[344379700,1733394645938,-2022.81,0.00024931,2]
[344379701,1733394645950,-714.62,0.00024931,2]
[344379702,1733394645959,-500.0,0.00024931,2]
[344379703,1733394645969,-242.56,0.00024931,2]
[344379704,1733394645978,-500.0,0.00024931,2]
[344379705,1733394645988,-190.0,0.00024932,2]
[344379706,1733394645997,-500.0,0.00024973,2]
[344379707,1733394646007,-228742.24033467,0.00024999,2]
[344379708,1733394646017,-1689474.4480401,0.00025,7]
[344379709,1733394646032,-31884.60131826,0.00025,7]
[344379717,1733394658130,189.518274,0.00013973,2]
[344379729,1733395315446,188.987894,0.00013973,2]
[344379780,1733395834938,185.594808,0.00017269,2]
[344379804,1733395835666,-400.0,0.00018203,2]
[344379805,1733395835675,-1221.7737894,0.00018519,2]
[344379806,1733395835684,-400.0,0.00018877,2]
[344379807,1733395835693,-300.0,0.00019169,2]
[344379808,1733395835703,-300.0,0.00019169,2]
[344379809,1733395835715,-26280.00223667,0.0001917,2]
[344379810,1733395835724,-693.41397966,0.0001917,2]
[344379811,1733395835733,-21406.99897075,0.00019204,2]
[344379823,1733395838306,-3473.00102925,0.00019204,2]
[344379824,1733395838316,-241.5722308,0.0001955,2]
[344379825,1733395838325,-400.0,0.0001955,2]
[344379826,1733395838334,-89.84479119,0.00019781,2]
[344379827,1733395838346,-421.11114707,0.00019781,2]
[344379856,1733395972512,179.538499,0.00013973,2]
[344379857,1733396197253,2523.89657669,0.00026,30]
[344379859,1733396448217,-19053.6587142,0.00019982,11]
[344379880,1733397032682,-1226.61,0.0001965,2]
[344379881,1733397032692,-400.0,0.00019863,2]
[344379882,1733397032701,-165.7902038,0.00020383,2]
[344379883,1733397032711,-179.538499,0.00020447,2]
[344379884,1733397032720,-350.8841143,0.00020567,2]
[344379885,1733397032729,-400.0,0.00020598,2]
[344379886,1733397032738,-1480.028217,0.00020692,2]
[344379887,1733397032747,-1784.2973092,0.0002075,2]
[344379888,1733397032756,-300.0,0.00020925,2]
[344379889,1733397032765,-300.0,0.00020925,2]
[344379890,1733397032774,-5572.2364688,0.00020926,2]
[344379892,1733397032783,-385.4714249,0.00020927,2]
[344379894,1733397032792,-400.0,0.00021333,2]
[344379896,1733397032801,-157.43,0.00021907,2]
[344379898,1733397032810,-500.0,0.00021917,2]
[344379899,1733397032819,-500.0,0.00021917,2]
[344379901,1733397032828,-500.0,0.00021917,2]
[344379902,1733397032837,-500.0,0.00021917,2]
[344379903,1733397032846,-451.72113877,0.00021917,2]
[344379904,1733397032855,-500.0,0.00021917,2]
[344379905,1733397032864,-158.0,0.00022,2]
[344379906,1733397032873,-400.0,0.00022068,2]
[344379907,1733397032882,-1011.4,0.0002219,2]
[344379908,1733397032891,-500.0,0.0002219,2]
[344379909,1733397032900,-619.89717609,0.00022191,2]
[344379910,1733397032909,-500.0,0.00022191,2]
[344379911,1733397032918,-500.0,0.00022191,2]
[344379912,1733397032929,-500.0,0.00022191,2]
[344379913,1733397032938,-500.0,0.00022191,2]
[344379914,1733397032947,-1011.4,0.00022464,2]
[344379915,1733397032956,-500.0,0.00022464,2]
[344379916,1733397032965,-500.0,0.00022465,2]
[344379917,1733397032974,-500.0,0.00022465,2]
[344379918,1733397032984,-500.0,0.00022465,2]
[344379919,1733397032993,-500.0,0.00022465,2]
[344379920,1733397033002,-500.0,0.0002265,2]
[344379921,1733397033011,-500.0,0.0002265,2]
[344379922,1733397033023,-500.94558442,0.0002265,2]
[344379923,1733397033033,-1011.4,0.00022738,2]
[344379924,1733397033043,-500.0,0.00022738,2]
[344379925,1733397033052,-500.0,0.00022739,2]
[344379926,1733397033063,-500.0,0.00022739,2]
[344379927,1733397033072,-500.0,0.00022739,2]
[344379928,1733397033082,-500.0,0.00022739,2]
[344379929,1733397033092,-420.0,0.00022764,2]
[344379930,1733397033104,-400.0,0.00022803,2]
[344379931,1733397033113,-973.72453781,0.00022912,2]
[344379932,1733397033123,-1011.4,0.00023012,2]
[344379933,1733397033133,-500.0,0.00023012,2]
[344379934,1733397033143,-500.0,0.00023013,2]
[344379935,1733397033153,-500.0,0.00023013,2]
[344379936,1733397033163,-500.0,0.00023013,2]
[344379937,1733397033174,-500.0,0.00023013,2]
[344379938,1733397033184,-420.0,0.00023018,2]
[344379939,1733397033195,-213.2496734,0.00023096,2]
[344379940,1733397033204,-305.4941208,0.00023096,2]
[344379941,1733397033213,-305.4941208,0.00023096,2]
[344379942,1733397033223,-372.21844301,0.00023198,2]
[344379943,1733397033232,-153.0,0.00023276,2]
[344379944,1733397033242,-153.0,0.00023276,2]
[344379945,1733397033252,-213.2007628,0.00023276,2]
[344379946,1733397033261,-153.0,0.00023276,2]
[344379947,1733397033271,-1011.4,0.00023286,2]
[344379948,1733397033281,-500.0,0.00023286,2]
[344379949,1733397033291,-500.0,0.00023287,2]
[344379950,1733397033300,-500.0,0.00023287,2]
[344379951,1733397033309,-609.89611458,0.00023287,2]
[344379952,1733397033320,-500.0,0.00023287,2]
[344379953,1733397033330,-213.2496734,0.00023356,2]
[344379954,1733397033339,-1011.4,0.0002356,2]
[344379955,1733397033349,-500.0,0.0002356,2]
[344379956,1733397033360,-500.0,0.00023561,2]
[344379957,1733397033370,-500.0,0.00023561,2]
[344379958,1733397033380,-500.0,0.00023561,2]
[344379959,1733397033389,-238.392,0.0002377,4]
[344379960,1733397033399,-155.00147897,0.00023797,2]
[344379961,1733397033410,-1011.4,0.00023834,2]
[344379962,1733397033419,-500.0,0.00023834,2]
[344379963,1733397033431,-500.0,0.00023835,2]
[344379964,1733397033442,-500.0,0.00023835,2]
[344379965,1733397033451,-500.0,0.00023835,2]
[344379966,1733397033461,-150.0,0.00023996,2]
[344379967,1733397033471,-150.0,0.00023996,2]
[344379968,1733397033481,-150.0,0.00023996,2]
[344379969,1733397033492,-532.0,0.00023996,2]
[344379970,1733397033503,-2170.0,0.00023996,2]
[344379971,1733397033514,-2374.0,0.00023996,2]
[344379972,1733397033524,-973.72453778,0.00024013,2]
[344379973,1733397033534,-1011.4,0.00024108,2]
[344379974,1733397033545,-500.0,0.00024108,2]
[344379975,1733397033555,-239.80853603,0.00024109,2]
[344379976,1733397033565,-500.0,0.00024109,2]
[344379977,1733397033577,-500.0,0.00024109,2]
[344379978,1733397033587,-211.72695186,0.00024233,2]
[344379979,1733397033597,-500.0,0.00024257,2]
[344379980,1733397033608,-500.0,0.00024264,2]
[344379981,1733397033618,-500.0,0.00024291,2]
[344379982,1733397033630,-500.0,0.00024296,2]
[344379983,1733397033640,-1011.4,0.00024382,2]
[344379984,1733397033649,-500.0,0.00024382,2]
[344379985,1733397033659,-636.35,0.00024383,2]
[344379986,1733397033671,-500.0,0.00024383,2]
[344379987,1733397033682,-2000.0,0.000245,2]
[344379988,1733397033692,-121514.12020125,0.000245,2]
[344379989,1733397033702,-1011.4,0.00024656,2]
[344379990,1733397033713,-500.0,0.00024656,2]
[344379991,1733397033723,-500.0,0.00024657,2]
[344379992,1733397033733,-528.083328,0.000247,2]
[344379993,1733397033742,-587.0,0.00024764,2]
[344379994,1733397033753,-252.2,0.00024808,4]
[344379995,1733397033763,-500.0,0.00024812,2]
[344379996,1733397033773,-1014.45785822,0.00024839,2]
[344379997,1733397033783,-260.27356657,0.00024873,2]
[344379998,1733397033793,-6405.25544302,0.000249,2]
[344379999,1733397033802,-1186.49732769,0.000249,2]
[344380000,1733397033812,-1011.4,0.0002493,2]
[344380001,1733397033822,-207.95594827,0.0002493,2]
[344380002,1733397033831,-82484.54827613,0.00024931,2]
[344380003,1733397033844,-1973.16275075,0.00024931,2]
[344380004,1733397033877,-503.03255594,0.0002265,2]
[344380005,1733397033887,-500.0,0.00023995,2]
[344380006,1733397033896,-500.0,0.00023995,2]
[344380007,1733397033905,-11246.78878038,0.00024931,2]
[344380008,1733397033916,-527.80694737,0.00024931,2]
[344380016,1733397038619,-7131.28313493,0.00023649,2]
[344380017,1733397038631,-15698.37774332,0.00023649,2]
[344380032,1733397040256,-1226.61,0.00023649,2]
[344380033,1733397040268,-632.8946772,0.00023649,2]
[344380078,1733397043484,-282.34165384,0.00023649,2]
[344380079,1733397043496,-472.56487184,0.00023649,2]
[344380080,1733397043509,-6679.92382506,0.00023649,2]
[344380081,1733397043519,-500.0,0.00023995,2]
[344380082,1733397043529,-38556.09687268,0.00024931,2]
[344380083,1733397043538,-500.0,0.00024931,2]
[344380084,1733397043548,-279.0,0.00024932,2]
[344380085,1733397043557,-500.0,0.00024973,2]
[344380086,1733397043567,-554.1696337,0.00024973,2]
[344380087,1733397043576,-500.0,0.00024973,2]
[344380088,1733397043585,-500.0,0.00024973,2]
[344380089,1733397043595,-502.94423374,0.00024973,2]
[344380090,1733397043604,-155.00007395,0.00024987,2]
[344380091,1733397043613,-2910.87195327,0.00025,7]
[344380092,1733397043625,-302.0,0.00025,7]
[344380093,1733397043636,-4223.56040228,0.00025,7]
[344380094,1733397043648,-398072.40540742,0.00025,7]
[344380095,1733397043660,-3583.91254572,0.00025,7]
[344380096,1733397043671,-3440.2495732,0.00025,7]
[344380110,1733397046253,-10235.0,0.00025,7]
[344380111,1733397046385,-254.9569847,0.00025,7]
[344380112,1733397046397,-38747.0837597,0.00025,7]
[344380113,1733397046408,-10521.79700004,0.00025,7]
[344380114,1733397149780,500.0,0.00026,30]
[344380115,1733397150120,507.88855536,0.00026,30]
[344380116,1733397150499,500.0,0.00026,30]
[344380117,1733397150829,201.08838092,0.00026,30]
[344380118,1733397178792,161.584649,0.00013973,2]
[344380125,1733397965326,161.584649,0.00013973,2]
[344380130,1733398108421,1867.88679265,0.000176,2]
[344380131,1733398115109,545.82822264,0.00015,7]
[344380189,1733398232483,-162.97286763,0.00019899,2]
[344380192,1733398232492,-305.70575002,0.00019899,3]
[344380193,1733398232502,-300.0,0.00019999,2]
[344380195,1733398232511,-300.0,0.00019999,2]
[344380197,1733398232521,-25000.0,0.0002,2]
[344380199,1733398232530,-850.0,0.0002,3]
[344380201,1733398232539,-849.0,0.0002,3]
[344380202,1733398232549,-849.0,0.0002,3]
[344380204,1733398232559,-849.0,0.0002,3]
[344380205,1733398232568,-2596.13509237,0.0002,2]
[344380207,1733398232577,-147.44423604,0.00020807,2]
[344380208,1733398232660,-14.14041296,0.00020807,2]
[344380209,1733398232669,-288.48690593,0.00021777,2]
[344380210,1733398232681,-131.51309407,0.00021777,2]
[344380211,1733398232690,-348.32690593,0.00021917,2]
[344380212,1733398232702,-151.67309407,0.00021917,2]
[344380213,1733398232717,-500.0,0.00021917,2]
[344380214,1733398232726,-420.0,0.00021999,2]
[344380215,1733398232735,-500.0,0.0002219,2]
[344380216,1733398232745,-500.0,0.00022191,2]
[344380217,1733398232754,-500.0,0.00022191,2]
[344380218,1733398232764,-500.0,0.00022464,2]
[344380219,1733398232773,-500.0,0.00022465,2]
[344380220,1733398232782,-500.0,0.00022465,2]
[344380221,1733398232792,-1278.206869,0.00022694,7]
[344380222,1733398232801,-190.0472,0.00022738,2]
[344380223,1733398232811,-500.0,0.00022739,2]
[344380224,1733398232820,-500.0,0.00022739,2]
[344380225,1733398232829,-740.014108,0.00022872,2]
[344380226,1733398232840,-400.0,0.00022985,2]
[344380227,1733398232849,-500.0,0.00023013,2]
[344380228,1733398232858,-288.59010162,0.00023013,2]
[344380229,1733398232870,-211.40989838,0.00023013,2]
[344380230,1733398232994,-500.0,0.00023287,2]
[344380231,1733398233004,-500.0,0.00023287,2]
[344380232,1733398233014,-500.0,0.00023561,2]
[344380233,1733398233023,-500.0,0.00023561,2]
[344380234,1733398233032,-469.8182561,0.00023616,2]
[344380235,1733398233042,-587.0,0.00023712,2]
[344380236,1733398233051,-500.0,0.00023835,2]
[344380237,1733398233061,-500.0,0.00023835,2]
[344380238,1733398233071,-400.0,0.00023835,2]
[344380239,1733398233081,-500.0,0.00024109,2]
[344380240,1733398233090,-500.0,0.00024109,2]
[344380241,1733398233100,-587.0,0.00024199,2]
[344380242,1733398233109,-500.0,0.00024383,2]
[344380243,1733398233118,-500.0,0.00024383,2]
[344380244,1733398233128,-2070.65845559,0.000244,2]
[344380245,1733398233138,-532.0,0.00024411,2]
[344380246,1733398233147,-2170.0,0.00024411,2]
[344380247,1733398233157,-2374.0,0.00024411,2]
[344380248,1733398233166,-308.8081538,0.00024438,2]
[344380249,1733398233175,-500.0,0.00024657,2]
[344380250,1733398233184,-500.0,0.00024657,2]
[344380251,1733398233193,-400.0,0.00024685,2]
[344380252,1733398233203,-260.544,0.00024798,8]
[344380253,1733398233214,-231.2,0.00024802,4]
[344380254,1733398233224,-547.84,0.00024899,2]
[344380255,1733398233233,-519.99524464,0.00024899,2]
[344380256,1733398233243,-502.63204216,0.00024899,2]
[344380257,1733398233252,-500.0,0.00024899,2]
[344380258,1733398233262,-501.06821044,0.00024899,2]
[344380259,1733398233272,-502.17706118,0.00024899,2]
[344380260,1733398233282,-500.0,0.00024899,2]
[344380261,1733398233291,-500.0,0.00024899,2]
[344380262,1733398233300,-500.0,0.00024899,2]
[344380263,1733398233310,-605.0,0.00024899,2]
[344380264,1733398233319,-1067.84759493,0.000249,2]
[344380265,1733398233329,-537.31,0.0002491,2]
[344380266,1733398233339,-500.0,0.0002491,2]
[344380267,1733398233351,-403.67987641,0.0002491,2]
[344380268,1733398233360,-500.0,0.0002491,2]
[344380269,1733398233370,-155.0000037,0.00024925,2]
[344380270,1733398233381,-500.0,0.00024931,2]
[344380271,1733398233390,-500.0,0.00024931,2]
[344380272,1733398233401,-244.0,0.00024932,2]
[344380273,1733398233410,-500.0,0.00024973,2]
[344380274,1733398233421,-2342.53973813,0.00024998,2]
[344380275,1733398233431,-262.70337964,0.00024999,2]
[344380276,1733398233440,-500.0,0.00024999,2]
[344380277,1733398233449,-500.0,0.00024999,2]
[344380278,1733398233458,-67394.20181365,0.00025,2]
[344380279,1733398233472,-70311.56627125,0.00025,7]
[344380280,1733398233484,-222170.67182195,0.00025,7]
[344380281,1733398233493,-187.25,0.00025,2]
[344380282,1733398233503,-57152.93548556,0.00025,2]
[344380283,1733398233512,-233408.41352579,0.00025,2]
[344380318,1733398238701,-9692.10001399,0.00025,2]
[344380319,1733398238735,-3470.004,0.00025,2]
[344380320,1733398238747,-3232.43770889,0.00025,2]
[344380321,1733398238777,-2246.9999981,0.00025,2]
[344380338,1733398240429,-15941.67307546,0.00025,2]
[344380339,1733398240442,-7863.12960862,0.00025,2]
[344380340,1733398240454,-140602.23515038,0.00025,2]
[344380341,1733398240466,-61.16775797,0.00025,2]
[344380367,1733398243440,-514.92,0.00024899,2]
[344380369,1733398243450,-8554.20224203,0.00025,2]
[344380370,1733398243460,-1304.03,0.00025,14]
[344380371,1733398243474,-98959.84079337,0.00025,7]
[344380372,1733398243483,-567.60648126,0.00025,2]
[344380373,1733398243492,-5000.0,0.00025,3]
[344380374,1733398243502,-800.0,0.00025,2]
[344380375,1733398243511,-152.613386,0.00025,7]
[344380376,1733398243525,-152.613386,0.00025,7]
[344380377,1733398243538,-151.0,0.00025,7]
[344380378,1733398243551,-151.0,0.00025,7]
[344380379,1733398243563,-151.0,0.00025,7]
[344380380,1733398243575,-151.0,0.00025,7]
[344380381,1733398243586,-151.0,0.00025,7]
[344380382,1733398243598,-328.065593,0.00025,7]
[344380383,1733398243609,-328.065593,0.00025,7]
[344380384,1733398243620,-328.065593,0.00025,7]
[344380385,1733398243630,-328.065593,0.00025,7]
[344380386,1733398243640,-328.065593,0.00025,7]
[344380387,1733398243650,-328.065593,0.00025,7]
[344380388,1733398243663,-151.0,0.00025,7]
[344380389,1733398243674,-298.162772,0.00025,7]
[344380390,1733398243686,-1298270.75,0.00025,7]
[344380391,1733398243696,-151.0,0.00025,6]
[344380392,1733398243708,-151.0,0.00025,6]
[344380393,1733398243722,-820.966407,0.00025,7]
[344380394,1733398243734,-820.966407,0.00025,7]
[344380395,1733398243745,-820.966407,0.00025,7]
[344380396,1733398243756,-820.966407,0.00025,7]
[344380397,1733398243768,-820.966407,0.00025,7]
[344380398,1733398243778,-820.966407,0.00025,7]
[344380399,1733398243789,-820.966407,0.00025,7]
[344380400,1733398243800,-820.966407,0.00025,7]
[344380401,1733398243811,-159.909918,0.00025,7]
[344380402,1733398243822,-159.909918,0.00025,7]
[344380403,1733398243833,-159.909918,0.00025,7]
[344380404,1733398243844,-520.444339,0.00025,7]
[344380405,1733398243856,-520.444339,0.00025,7]
[344380406,1733398243866,-520.444339,0.00025,7]
[344380407,1733398243877,-520.444339,0.00025,7]
[344380408,1733398243887,-520.444339,0.00025,7]
[344380409,1733398243898,-520.444339,0.00025,7]
[344380410,1733398243911,-151.0,0.00025,7]
[344380411,1733398243921,-151.0,0.00025,7]
[344380412,1733398243932,-151.0,0.00025,7]
[344380413,1733398243943,-151.0,0.00025,7]
[344380414,1733398243954,-151.0,0.00025,7]
[344380415,1733398243967,-151.0,0.00025,7]
[344380416,1733398243979,-151.0,0.00025,7]
[344380417,1733398243991,-385.020858,0.00025,7]
[344380418,1733398244002,-385.020858,0.00025,7]
[344380419,1733398244013,-385.020858,0.00025,7]
[344380420,1733398244023,-385.020858,0.00025,7]
[344380421,1733398244033,-385.020858,0.00025,7]
[344380422,1733398244043,-385.020858,0.00025,7]
[344380423,1733398244054,-172.322764,0.00025,7]
[344380424,1733398244063,-172.322764,0.00025,7]
[344380425,1733398244073,-151.0,0.00025,7]
[344380426,1733398244082,-151.0,0.00025,7]
[344380427,1733398244092,-151.0,0.00025,7]
[344380428,1733398244102,-211.906336,0.00025,7]
[344380429,1733398244112,-244.0,0.00025,2]
[344380430,1733398244123,-151.0,0.00025,7]
[344380431,1733398244133,-177.857792,0.00025,7]
[344380432,1733398244143,-470.961035,0.00025,7]
[344380433,1733398244154,-470.961035,0.00025,7]
[344380434,1733398244164,-151.0,0.00025,7]
[344380435,1733398244175,-151.0,0.00025,7]
[344380436,1733398244185,-151.0,0.00025,7]
[344380437,1733398244196,-151.0,0.00025,7]
[344380438,1733398244208,-151.0,0.00025,7]
[344380439,1733398244221,-150.0,0.00025,2]
[344380440,1733398244233,-151.0,0.00025,7]
[344380441,1733398244244,-151.0,0.00025,7]
[344380442,1733398244255,-151.0,0.00025,7]
[344380443,1733398244266,-4630.31969912,0.00025,2]
[344380444,1733398244276,-172.299116,0.00025,7]
[344380445,1733398244286,-172.299116,0.00025,7]
[344380446,1733398244296,-395.519165,0.00025,7]
[344380447,1733398244308,-395.519165,0.00025,7]
[344380448,1733398244319,-352.705194,0.00025,7]
[344380449,1733398244329,-352.705194,0.00025,7]
[344380450,1733398244343,-179829.0,0.00025,2]
[344380451,1733398244354,-37191.76154457,0.0002509,2]
[344380452,1733398244364,-930.8792161,0.00025093,7]
[344380453,1733398244373,-500.0,0.00025104,2]
[344380454,1733398244385,-500.0,0.00025104,2]
[344380455,1733398244395,-150.09,0.00025104,2]
[344380456,1733398244407,-500.0,0.00025104,2]
[344380457,1733398244418,-500.0,0.00025104,2]
[344380458,1733398244429,-500.0,0.00025104,2]
[344380459,1733398244440,-150.09,0.00025104,2]
[344380460,1733398244452,-500.0,0.00025104,2]
[344380461,1733398244463,-500.0,0.00025104,2]
[344380462,1733398244476,-500.0,0.00025104,2]
[344380463,1733398244487,-500.0,0.00025104,2]
[344380464,1733398244497,-500.0,0.00025104,2]
[344380465,1733398244507,-198.0366358,0.00025104,2]
[344380466,1733398244516,-150.80874534,0.00025104,2]
[344380467,1733398244526,-150.09,0.00025104,2]
[344380468,1733398244537,-150.09,0.00025104,2]
[344380469,1733398244547,-500.0,0.00025104,2]
[344380470,1733398244557,-500.0,0.00025104,2]
[344380471,1733398244567,-150.09,0.00025104,2]
[344380472,1733398244579,-150.09,0.00025104,2]
[344380473,1733398244589,-547.84,0.00025173,2]
[344380474,1733398244600,-301.14,0.00025173,2]
[344380475,1733398244610,-520.26729211,0.00025173,2]
[344380476,1733398244620,-409.75556335,0.00025173,2]
[344380477,1733398244630,-500.0,0.00025173,2]
[344380478,1733398244640,-605.0,0.00025173,2]
[344380479,1733398244650,-514.92,0.00025173,2]
[344380480,1733398244660,-500.0,0.00025184,2]
[344380481,1733398244670,-500.0,0.00025184,2]
[344380482,1733398244680,-500.0,0.00025205,2]
[344380483,1733398244690,-500.0,0.00025205,2]
[344380484,1733398244700,-498.40095864,0.00025273,2]
[344380485,1733398244710,-500.0,0.00025273,2]
[344380486,1733398244726,-231.2,0.0002536,4]
[344380487,1733398244736,-500.0,0.00025378,2]
[344380488,1733398244746,-500.0,0.00025378,2]
[344380489,1733398244756,-706.01267457,0.00025378,2]
[344380490,1733398244766,-500.0,0.00025378,2]
[344380491,1733398244776,-500.0,0.00025378,2]
[344380492,1733398244787,-500.0,0.00025378,2]
[344380493,1733398244799,-862.814543,0.00025378,2]
[344380494,1733398244810,-500.0,0.00025378,2]
[344380495,1733398244820,-500.0,0.00025378,2]
[344380496,1733398244831,-500.0,0.00025378,2]
[344380497,1733398244842,-150.09,0.00025378,2]
[344380498,1733398244852,-150.09,0.00025378,2]
[344380499,1733398244862,-500.0,0.00025378,2]
[344380500,1733398244872,-500.0,0.00025378,2]
[344380501,1733398244882,-150.09,0.00025378,2]
[344380502,1733398244894,-150.94523545,0.00025378,2]
[344380503,1733398244903,-547.84,0.00025447,2]
[344380504,1733398244914,-605.0,0.00025447,2]
[344380505,1733398244924,-514.92,0.00025447,2]
[344380506,1733398244935,-500.0,0.00025458,2]
[344380507,1733398244946,-500.0,0.00025458,2]
[344380508,1733398244956,-500.0,0.00025479,2]
[344380509,1733398244969,-500.0,0.00025479,2]
[344380510,1733398244979,-828.51,0.00025521,2]
[344380511,1733398244989,-1067.84759488,0.00025533,2]
[344380512,1733398245000,-400.0,0.00025536,2]
[344380513,1733398245011,-500.0,0.00025547,2]
[344380514,1733398245022,-782.58112824,0.00025652,2]
[344380515,1733398245032,-805.87528172,0.00025652,2]
[344380516,1733398245043,-500.0,0.00025652,2]
[344380517,1733398245054,-500.0,0.00025652,2]
[344380518,1733398245065,-500.0,0.00025652,2]
[344380519,1733398245076,-915.75734211,0.00025652,2]
[344380520,1733398245087,-500.0,0.00025652,2]
[344380521,1733398245279,-500.0,0.00025652,2]
[344380522,1733398245292,-150.09,0.00025652,2]
[344380523,1733398245303,-150.09,0.00025652,2]
[344380524,1733398245313,-500.0,0.00025652,2]
[344380525,1733398245323,-500.0,0.00025652,2]
[344380526,1733398245334,-150.09,0.00025652,2]
[344380527,1733398245349,-547.84,0.00025721,2]
[344380528,1733398245360,-605.0,0.00025721,2]
[344380529,1733398245369,-514.92,0.00025721,2]
[344380530,1733398245379,-500.0,0.00025732,2]
[344380531,1733398245390,-500.0,0.00025732,2]
[344380532,1733398245400,-500.0,0.00025753,2]
[344380533,1733398245411,-500.0,0.00025753,2]
[344380534,1733398245422,-472.72106426,0.00025821,2]
[344380535,1733398245433,-583.06425265,0.00025852,2]
[344380536,1733398245443,-244.0,0.0002589,2]
[344380537,1733398245452,-231.2,0.00025918,4]
[344380538,1733398245462,-500.0,0.00025926,2]
[344380539,1733398245475,-500.0,0.00025926,2]
[344380540,1733398245485,-590.65202126,0.00025926,2]
[344380541,1733398245495,-500.0,0.00025926,2]
[344380542,1733398245504,-503.48342625,0.00025926,2]
[344380543,1733398245514,-156.53725453,0.00025926,2]
[344380544,1733398245524,-151.44572703,0.00025926,2]
[344380545,1733398245535,-500.0,0.00025926,2]
[344380546,1733398245545,-521.09426344,0.00025926,2]
[344380547,1733398245554,-250.55764375,0.00025926,2]
[344380548,1733398245564,-372.92280094,0.00025973,2]
[344380549,1733398245575,-547.84,0.00025995,2]
[344380550,1733398245585,-605.0,0.00025995,2]
[344380551,1733398245594,-514.92,0.00025995,2]
[344380552,1733398245604,-530.52003063,0.00026,2]
[344380553,1733398245614,-6052.68483012,0.00026,2]
[344380554,1733398245624,-474.07048806,0.00026,7]
[344380555,1733398245633,-3500.0,0.00026,2]
[344380556,1733398245643,-403.88,0.00026,4]
[344380557,1733398245652,-500.0,0.00026,4]
[344380558,1733398245661,-500.0,0.00026,4]
[344380559,1733398245670,-21654.064099,0.00026,10]
[344380560,1733398245680,-10602.64224916,0.00026,3]
[344380561,1733398245689,-16261.42427165,0.00026,2]
[344380562,1733398245699,-151.0,0.00026,7]
[344380563,1733398245709,-328.065593,0.00026,7]
[344380564,1733398245723,-328.065593,0.00026,7]
[344380565,1733398245732,-820.966407,0.00026,7]
[344380566,1733398245742,-820.966407,0.00026,7]
[344380567,1733398245751,-159.909918,0.00026,7]
[344380568,1733398245761,-520.444339,0.00026,7]
[344380569,1733398245770,-520.444339,0.00026,7]
[344380570,1733398245780,-151.0,0.00026,7]
[344380571,1733398245790,-385.020858,0.00026,7]
[344380572,1733398245799,-385.020858,0.00026,7]
[344380573,1733398245808,-151.0,0.00026,7]
[344380574,1733398245818,-151.0,0.00026,7]
[344380575,1733398245827,-151.0,0.00026,7]
[344380576,1733398245837,-151.0,0.00026,7]